bitfinex/quotes_BTCUSD_20220731
["timestamp","ask_amount","ask_price","bid_price","bid_amount"]
[1659252133707,0.001,23801.0,23800.0,1.51520569]
[1659252133944,0.001,23801.0,23800.0,1.24064949]
[1659252134443,0.001,23801.0,23800.0,1.27218949]
[1659252134896,0.001,23801.0,23800.0,1.34218949]
[1659252135375,0.001,23801.0,23800.0,1.31064949]
[1659252136261,0.001,23801.0,23800.0,0.84064949]
[1659252136524,0.001,23801.0,23800.0,0.43339216]
[1659252136991,0.001,23801.0,23800.0,0.51239216]
[1659252138448,0.001,23801.0,23800.0,0.43339216]
[1659252138888,0.001,23801.0,23800.0,0.46439216]
[1659252139103,0.001,23801.0,23800.0,0.76439216]
[1659252139312,0.001,23801.0,23800.0,0.46439216]
[1659252140209,0.001,23801.0,23800.0,0.43339216]
[1659252141605,0.001,23801.0,23800.0,0.43733716]
[1659252141893,0.001,23801.0,23800.0,0.407664]
[1659252142994,0.14275,23801.0,23800.0,0.323719]
[1659252143275,0.14275,23801.0,23800.0,0.044]
[1659252144661,0.001,23801.0,23799.0,0.1274]
[1659252144883,0.001,23801.0,23800.0,0.078]
[1659252145581,0.14275,23801.0,23800.0,0.078]
[1659252145855,1.15372633,23801.0,23795.0,0.337465]
[1659252146076,0.40725733,23800.0,23795.0,0.337465]
[1659252146518,0.301,23801.0,23795.0,0.337465]
[1659252147610,0.301,23801.0,23797.0,0.1274]
[1659252148044,0.03528668,23800.0,23797.0,0.1274]
[1659252148521,0.301,23801.0,23799.0,0.1274]
[1659252148522,0.001,23801.0,23799.0,0.1274]
[1659252148959,0.03628668,23801.0,23799.0,0.1274]
[1659252149424,0.303719,23800.0,23799.0,0.1274]
[1659252149708,0.03628668,23801.0,23799.0,0.1274]
[1659252150621,0.303599,23800.0,23799.0,0.1274]
[1659252150847,0.03628668,23801.0,23799.0,0.1274]
[1659252151304,0.001,23801.0,23799.0,0.1274]
[1659252151520,0.03628668,23801.0,23799.0,0.1274]
[1659252152531,0.303599,23800.0,23797.0,0.1287]
[1659252152729,0.03628668,23801.0,23797.0,0.1287]
[1659252153126,0.001,23801.0,23797.0,0.1287]
[1659252153364,0.00061352,23800.0,23797.0,0.1287]
[1659252155672,1.21164103,23803.0,23797.0,0.1287]
[1659252155904,0.40725733,23802.0,23797.0,0.1287]
[1659252156351,0.40725733,23802.0,23798.0,0.05]
[1659252156574,0.40725733,23802.0,23797.0,0.1287]
[1659252159811,0.70725733,23802.0,23797.0,0.1287]
[1659252160275,0.303599,23801.0,23797.0,0.1287]
[1659252160507,0.03467316,23800.0,23797.0,0.1287]
[1659252160948,0.70725733,23802.0,23798.0,0.00059698]
[1659252161231,0.303599,23801.0,23797.0,0.1287]
[1659252161459,0.94318103,23803.0,23797.0,0.53595733]
[1659252161460,0.91164103,23803.0,23797.0,0.53595733]
[1659252161689,0.91164103,23803.0,23800.0,0.1287]
[1659252161909,0.303599,23802.0,23800.0,0.1287]
[1659252162143,0.395179,23801.0,23800.0,0.1287]
[1659252162624,0.91164103,23803.0,23800.0,0.12929693]
[1659252162856,0.91164103,23803.0,23802.0,0.1274]
[1659252163551,1.21524003,23803.0,23802.0,0.1274]
[1659252163789,1.24991319,23803.0,23802.0,0.1274]
[1659252164229,0.91164103,23803.0,23802.0,0.1274]
[1659252165143,1.21524003,23803.0,23802.0,0.1274]
[1659252165356,0.91164103,23803.0,23802.0,0.1274]
[1659252165804,0.91164103,23803.0,23802.0,0.08765354]
[1659252168887,0.91164103,23803.0,23802.0,0.10465354]
[1659252169557,0.94631419,23803.0,23802.0,0.10465354]
[1659252170280,1.24991319,23803.0,23801.0,0.210009]
[1659252170536,0.50243633,23802.0,23796.0,0.23972016]
[1659252170763,0.50243633,23802.0,23795.0,0.1274]
[1659252170764,0.40725733,23801.0,23795.0,0.1274]
[1659252171213,0.40725733,23801.0,23795.0,0.337457]
[1659252171664,0.45725733,23802.0,23797.0,0.1287]
[1659252171878,0.05,23802.0,23797.0,0.1287]
[1659252173059,0.05,23802.0,23797.0,0.2047]
[1659252174194,0.05,23802.0,23797.0,0.1287]
[1659252175588,0.45725733,23802.0,23797.0,0.1287]
[1659252175807,0.85725733,23802.0,23797.0,0.1287]
[1659252176241,0.303599,23801.0,23797.0,0.1287]
[1659252176525,0.03467316,23800.0,23797.0,0.1287]
[1659252176760,0.85725733,23802.0,23797.0,0.1287]
[1659252180406,0.88879733,23802.0,23795.0,0.338757]
[1659252180633,0.40725733,23801.0,23795.0,0.338757]
[1659252180868,0.4,23797.0,23790.0,0.44877316]
[1659252181099,0.603599,23800.0,23790.0,0.85603049]
[1659252181100,0.03155,23799.0,23790.0,0.85603049]
[1659252181299,0.303599,23798.0,23790.0,1.12635733]
[1659252181580,0.4,23796.0,23790.0,1.12635733]
[1659252181818,0.40725733,23797.0,23790.0,0.74935733]
[1659252182961,0.40725733,23797.0,23790.0,0.82435733]
[1659252184184,0.40725733,23797.0,23792.0,6.035e-05]
[1659252185069,0.40725733,23797.0,23791.0,0.1287]
[1659252185311,0.40725733,23797.0,23792.0,0.30006035]
[1659252186350,0.40725733,23797.0,23792.0,0.3]
[1659252186758,0.303599,23796.0,23791.0,0.1287]
[1659252186967,0.40725733,23797.0,23791.0,0.1287]
[1659252187423,0.303599,23796.0,23791.0,0.1287]
[1659252187630,0.40725733,23797.0,23791.0,0.1287]
[1659252192802,0.40725733,23797.0,23791.0,0.12863065]
[1659252197106,0.40725733,23797.0,23792.0,0.05]
[1659252197328,0.303655,23796.0,23791.0,0.12863065]
[1659252197552,0.40725733,23797.0,23791.0,0.12863065]
[1659252200083,0.40725733,23797.0,23792.0,0.3]
[1659252200314,0.5838,23800.0,23796.0,0.15777316]
[1659252200539,0.33832816,23799.0,23796.0,0.15777316]
[1659252200778,0.03467316,23799.0,23796.0,0.15777316]
[1659252201898,0.5838,23800.0,23796.0,0.15777316]
[1659252202117,0.33832816,23799.0,23796.0,0.15777316]
[1659252202333,0.6018,23802.0,23797.0,0.05]
[1659252202546,0.303655,23801.0,23796.0,0.15777316]
[1659252202788,0.045038,23800.0,23796.0,0.15777316]
[1659252203006,0.303655,23799.0,23796.0,0.15777316]
[1659252203284,1.00905733,23802.0,23796.0,0.15777316]
[1659252203500,0.303655,23801.0,23796.0,0.15777316]
[1659252203723,0.045038,23800.0,23796.0,0.15777316]
[1659252203942,0.303655,23799.0,23796.0,0.15777316]
[1659252204165,1.00905733,23802.0,23796.0,0.15777316]
[1659252204406,0.303655,23801.0,23796.0,0.15777316]
[1659252204627,0.045038,23800.0,23796.0,0.15777316]
[1659252204854,1.00905733,23802.0,23796.0,0.15777316]
[1659252205071,0.303655,23801.0,23796.0,0.15777316]
[1659252205296,0.045038,23800.0,23796.0,0.15777316]
[1659252205562,0.05,23797.0,23790.0,0.1287]
[1659252205784,0.40725733,23796.0,23789.0,0.6105]
[1659252205999,0.40725733,23796.0,23790.0,0.3]
[1659252207588,0.05,23797.0,23794.0,0.1281]
[1659252207810,0.57439406,23801.0,23796.0,0.1287]
[1659252208058,0.303655,23800.0,23796.0,0.1287]
[1659252208322,0.07971116,23799.0,23796.0,0.1287]
[1659252208544,0.71091233,23798.0,23794.0,0.1281]
[1659252208774,0.5742,23801.0,23791.0,0.23975416]
[1659252208775,0.45229533,23797.0,23791.0,0.210081]
[1659252208993,0.40725733,23797.0,23791.0,0.50980384]
[1659252209218,0.33154,23800.0,23791.0,0.61706117]
[1659252209219,0.40725733,23799.0,23791.0,0.61706117]
[1659252209444,0.40725733,23799.0,23792.0,0.4281]
[1659252210114,0.40725733,23799.0,23792.0,0.1281]
[1659252210325,0.603655,23798.0,23792.0,0.1281]
[1659252210549,0.40725733,23799.0,23792.0,0.1281]
[1659252211454,0.303655,23798.0,23792.0,0.1281]
[1659252211670,0.45229533,23797.0,23792.0,0.1281]
[1659252211898,0.40725733,23797.0,23792.0,6.035e-05]
[1659252212783,0.40725733,23797.0,23791.0,0.61484184]
[1659252213008,0.40725733,23797.0,23791.0,0.31484184]
[1659252213228,0.40725733,23797.0,23792.0,6.035e-05]
[1659252214112,0.40725733,23797.0,23791.0,0.61484184]
[1659252215186,0.40725733,23797.0,23791.0,0.31484184]
[1659252217220,0.40725733,23797.0,23791.0,0.20980384]
[1659252219713,0.40725733,23797.0,23792.0,0.1281]
[1659252219917,0.70725733,23797.0,23792.0,0.1281]
[1659252220316,0.40725733,23797.0,23792.0,0.1281]
[1659252220932,0.303655,23796.0,23792.0,0.1281]
[1659252221283,0.40725733,23797.0,23792.0,0.1281]
[1659252224081,0.40725733,23797.0,23795.0,0.1287]
[1659252225408,0.40725733,23797.0,23795.0,0.2057]
[1659252225846,0.44193049,23797.0,23795.0,0.2057]
[1659252226061,0.303655,23796.0,23795.0,0.077]
[1659252226278,0.44193049,23797.0,23795.0,0.077]
[1659252226492,0.303655,23796.0,23795.0,0.077]
[1659252226786,0.44193049,23797.0,23793.0,0.1287]
[1659252228135,0.40725733,23797.0,23793.0,0.1287]
[1659252229964,0.40225733,23797.0,23793.0,0.1287]
[1659252231119,0.40225733,23797.0,23794.0,0.0011721]
[1659252231787,0.40225733,23797.0,23793.0,0.1287]
[1659252231788,0.43467316,23796.0,23795.0,0.05]
[1659252232012,0.03467316,23796.0,23793.0,0.1287]
[1659252232237,0.40225733,23797.0,23793.0,0.12987214]
[1659252234236,1.55564103,23803.0,23795.0,0.15837316]
[1659252234502,1.55564103,23803.0,23798.0,0.1281]
[1659252234503,0.40725733,23802.0,23798.0,0.1281]
[1659252234727,0.303655,23801.0,23799.0,0.00117185]
[1659252234946,0.045038,23800.0,23799.0,0.00117185]
[1659252235180,0.303655,23800.0,23798.0,0.1281]
[1659252235399,0.40725733,23801.0,23798.0,0.1281]
[1659252235630,0.303655,23800.0,23798.0,0.1281]
[1659252235844,0.03467316,23799.0,23796.0,0.4287]
[1659252236053,0.40725733,23801.0,23796.0,0.1287]
[1659252241155,0.303655,23800.0,23796.0,0.1287]
[1659252241364,0.03467316,23799.0,23796.0,0.1287]
[1659252241817,0.05,23795.0,23790.0,0.210089]
[1659252242091,0.40725733,23794.0,23787.0,0.6984]
[1659252242306,0.045038,23793.0,23787.0,0.6984]
[1659252242532,0.40725733,23794.0,23787.0,0.6984]
[1659252242751,0.303655,23793.0,23787.0,0.6984]
[1659252242990,0.40725733,23794.0,23787.0,0.6984]
[1659252243206,0.303655,23793.0,23787.0,0.6984]
[1659252243422,0.303655,23792.0,23787.0,0.6984]
[1659252243646,0.079,23793.0,23787.0,0.5697]
[1659252244086,0.72758417,23792.0,23785.0,0.0421]
[1659252244322,0.72758417,23792.0,23782.0,0.5472]
[1659252244323,0.05,23788.0,23782.0,0.5472]
[1659252244530,0.70725733,23787.0,23779.0,0.23985116]
[1659252244754,0.71091233,23786.0,23778.0,0.95545733]
[1659252244975,0.05,23779.0,23778.0,0.001]
[1659252245204,0.05,23779.0,23778.0,0.00498933]
[1659252245434,0.603655,23784.0,23778.0,0.072]
[1659252245435,0.03467316,23780.0,23778.0,0.072]
[1659252245653,0.3,23784.0,23778.0,0.072]
[1659252245654,0.70725733,23784.0,23778.0,0.072]
[1659252246119,0.42758417,23783.0,23778.0,0.072]
[1659252246344,0.85,23779.0,23778.0,0.072]
[1659252246578,0.92971116,23779.0,23778.0,0.072]
[1659252247079,0.92971116,23779.0,23778.0,0.001]
[1659252247080,1.33696849,23779.0,23778.0,0.001]
[1659252247315,0.53696849,23779.0,23778.0,0.001]
[1659252247546,0.54996849,23779.0,23778.0,0.074]
[1659252248719,0.53696849,23779.0,23778.0,0.001]
[1659252249433,0.54996849,23779.0,23778.0,0.074]
[1659252250900,0.50229533,23779.0,23778.0,0.001]
[1659252251367,0.51529533,23779.0,23778.0,0.074]
[1659252252781,0.50229533,23779.0,23778.0,0.001]
[1659252253433,0.57729533,23779.0,23778.0,0.001]
[1659252254358,0.61196849,23779.0,23778.0,0.001]
[1659252254832,0.53696849,23779.0,23778.0,0.001]
[1659252255532,0.55996849,23779.0,23778.0,0.077]
[1659252255745,0.023,23779.0,23778.0,0.10933111]
[1659252256219,0.02289639,23779.0,23778.0,0.40933111]
[1659252256439,0.02289639,23779.0,23778.0,0.84108611]
[1659252256888,0.5996,23787.0,23778.0,0.76508611]
[1659252257145,0.71091233,23786.0,23778.0,0.46143111]
[1659252257373,0.45229533,23785.0,23778.0,0.46143111]
[1659252257601,0.5996,23787.0,23778.0,0.08]
[1659252257602,1.15341233,23784.0,23778.0,0.08]
[1659252257826,0.45229533,23783.0,23778.0,0.08]
[1659252258048,0.71091233,23782.0,23778.0,0.08]
[1659252258258,0.48696849,23781.0,23778.0,0.08]
[1659252258519,0.40725733,23780.0,23778.0,0.08]
[1659252258761,0.40725733,23780.0,23778.0,0.001]
[1659252259418,0.46993049,23780.0,23778.0,0.078]
[1659252260333,0.43525733,23780.0,23778.0,0.07932768]
[1659252260782,0.40725733,23780.0,23778.0,0.00232768]
[1659252261232,0.40725733,23780.0,23779.0,0.02957316]
[1659252262843,0.40725733,23780.0,23778.0,0.00232768]
[1659252263278,0.03467316,23779.0,23778.0,0.001]
[1659252263519,0.40725733,23780.0,23778.0,0.08132768]
[1659252264657,0.40725733,23780.0,23779.0,0.05]
[1659252264866,0.40725733,23780.0,23778.0,0.00232768]
[1659252265610,0.40725733,23780.0,23779.0,0.078]
[1659252267379,1.44625733,23786.0,23778.0,0.00232768]
[1659252267586,0.014,23780.0,23779.0,0.073]
[1659252268056,0.1113,23780.0,23779.0,0.073]
[1659252268295,0.414955,23780.0,23779.0,0.073]
[1659252268521,0.1113,23780.0,23779.0,0.073]
[1659252268745,0.0973,23780.0,23778.0,0.001]
[1659252269434,0.0973,23780.0,23778.0,0.079]
[1659252269654,0.09666386,23780.0,23778.0,0.079]
[1659252269907,0.40031886,23780.0,23778.0,0.079]
[1659252270108,0.09666386,23780.0,23778.0,0.079]
[1659252270333,0.09666386,23780.0,23778.0,0.08173322]
[1659252270778,0.09666386,23780.0,23779.0,0.05]
[1659252271006,0.40031886,23780.0,23778.0,0.00373322]
[1659252271227,0.09666386,23780.0,23778.0,0.00373322]
[1659252271450,0.42931886,23780.0,23779.0,0.078]
[1659252272170,0.83657619,23780.0,23779.0,0.078]
[1659252273296,0.80757619,23780.0,23778.0,0.00373322]
[1659252273524,0.50992119,23780.0,23779.0,0.065]
[1659252273784,0.81357619,23780.0,23779.0,0.065]
[1659252274681,0.81357619,23780.0,23778.0,0.001]
[1659252274909,0.50392119,23780.0,23778.0,0.001]
[1659252275631,0.50992119,23780.0,23778.0,0.066]
[1659252275849,0.703655,23779.0,23778.0,0.066]
[1659252276093,0.303655,23779.0,23778.0,0.066]
[1659252276813,0.303655,23779.0,23778.0,0.001]
[1659252277517,0.36132816,23779.0,23778.0,0.001]
[1659252277994,0.76858549,23779.0,23778.0,0.001]
[1659252278872,0.74558549,23779.0,23778.0,0.001]
[1659252279557,0.76858549,23779.0,23778.0,0.001]
[1659252280026,0.326655,23779.0,23778.0,0.04545]
[1659252280261,0.023,23779.0,23778.0,0.37502316]
[1659252280476,0.023,23779.0,23778.0,0.67867816]
[1659252280680,1.1916,23787.0,23778.0,0.67867816]
[1659252280950,0.71091233,23786.0,23779.0,0.1287]
[1659252281203,0.45229533,23785.0,23779.0,0.1287]
[1659252281452,0.40725733,23785.0,23779.0,0.16027]
[1659252281664,0.303655,23784.0,23779.0,0.1287]
[1659252281930,0.40725733,23785.0,23779.0,0.1287]
[1659252282146,0.303655,23784.0,23779.0,0.1287]
[1659252282384,0.40725733,23785.0,23779.0,0.1287]
[1659252282604,0.303655,23784.0,23779.0,0.1287]
[1659252282839,0.40725733,23785.0,23779.0,0.1287]
[1659252283059,0.303655,23784.0,23779.0,0.1287]
[1659252283260,0.40725733,23785.0,23779.0,0.1287]
[1659252283515,0.303655,23784.0,23779.0,0.1287]
[1659252283737,0.45025733,23785.0,23779.0,0.1287]
[1659252283965,0.303655,23784.0,23779.0,0.1287]
[1659252284190,0.45025733,23785.0,23779.0,0.1287]
[1659252284497,0.303655,23784.0,23779.0,0.1287]
[1659252284657,0.043,23785.0,23783.0,0.02957316]
[1659252284894,1.5492,23791.0,23784.0,0.10013506]
[1659252285122,0.71091233,23790.0,23786.0,0.02957316]
[1659252285355,0.045038,23789.0,23786.0,0.02957316]
[1659252285577,0.303175,23788.0,23786.0,0.02957316]
[1659252285802,0.40725733,23790.0,23786.0,0.02957316]
[1659252286035,0.303707,23789.0,23786.0,0.02957316]
[1659252286259,0.05,23787.0,23783.0,0.10774078]
[1659252286486,0.71096433,23786.0,23783.0,0.07816762]
[1659252286726,0.302583,23785.0,23784.0,0.05013506]
[1659252286956,0.40725733,23786.0,23781.0,0.5498]
[1659252287179,0.44193049,23786.0,23781.0,0.5498]
[1659252287403,0.077,23785.0,23781.0,0.5498]
[1659252287625,0.077,23785.0,23782.0,0.00386322]
[1659252288795,0.077,23785.0,23782.0,0.00392359]
[1659252289271,0.40725733,23786.0,23784.0,0.02957316]
[1659252289489,0.062,23785.0,23784.0,0.02957316]
[1659252289710,0.062,23785.0,23783.0,0.15827316]
[1659252289945,0.062,23785.0,23784.0,0.05]
[1659252290175,0.062,23785.0,23783.0,0.02963353]
[1659252290923,0.40725733,23786.0,23783.0,0.02963353]
[1659252291147,0.40725733,23786.0,23784.0,0.05]
[1659252291148,0.33840916,23785.0,23784.0,0.05]
[1659252291368,0.303736,23785.0,23783.0,0.02957316]
[1659252291600,0.042675,23784.0,23783.0,0.02957316]
[1659252291829,0.079,23785.0,23783.0,0.02957316]
[1659252292277,0.079,23785.0,23782.0,0.00386322]
[1659252292727,0.40725733,23786.0,23782.0,0.00386322]
[1659252293213,0.03467316,23785.0,23782.0,0.00386322]
[1659252293673,0.48625733,23786.0,23782.0,0.00386322]
[1659252293891,0.40725733,23784.0,23782.0,0.02957316]
[1659252294133,0.40725733,23784.0,23782.0,0.00019316]
[1659252295041,0.40725733,23784.0,23783.0,0.05]
[1659252295263,0.70725733,23786.0,23782.0,0.00019316]
[1659252295512,0.40725733,23786.0,23782.0,0.07819316]
[1659252296239,0.03467316,23785.0,23782.0,0.078]
[1659252296911,0.40725733,23786.0,23779.0,0.36114316]
[1659252297133,0.40725733,23786.0,23779.0,0.76858572]
[1659252297613,0.40725733,23786.0,23782.0,0.079]
[1659252298077,0.40725733,23786.0,23783.0,0.00349606]
[1659252298307,0.303736,23785.0,23783.0,0.00349606]
[1659252298547,0.40725733,23786.0,23783.0,0.00349606]
[1659252298764,0.303736,23785.0,23783.0,0.00349606]
[1659252298989,0.40725733,23786.0,23782.0,0.079]
[1659252299202,0.40725733,23786.0,23784.0,0.00349591]
[1659252299438,0.303736,23785.0,23783.0,0.078]
[1659252299661,0.44193049,23786.0,23783.0,0.078]
[1659252300151,0.303736,23785.0,23783.0,0.078]
[1659252300364,0.44193049,23786.0,23783.0,0.078]
[1659252300613,0.303736,23785.0,23783.0,0.078]
[1659252300829,0.44193049,23786.0,23779.0,0.76840049]
[1659252301059,0.40725733,23786.0,23782.0,0.02957316]
[1659252301500,0.42025733,23786.0,23782.0,0.02957316]
[1659252302867,0.40725733,23786.0,23782.0,0.02957316]
[1659252303529,0.42025733,23786.0,23782.0,0.10357316]
[1659252304872,0.40725733,23786.0,23782.0,0.02957316]
[1659252305573,0.42025733,23786.0,23783.0,0.00036748]
[1659252306421,0.42025733,23786.0,23784.0,0.05]
[1659252306664,0.303736,23785.0,23783.0,0.00036748]
[1659252306859,0.40725733,23786.0,23783.0,0.00036748]
[1659252307498,0.40725733,23786.0,23783.0,0.07836748]
[1659252307755,0.40725733,23786.0,23784.0,0.05]
[1659252307975,0.303736,23785.0,23783.0,0.07836748]
[1659252308194,0.40725733,23786.0,23785.0,0.00036745]
[1659252308430,0.71099333,23786.0,23783.0,0.078]
[1659252308627,0.40725733,23786.0,23783.0,0.078]
[1659252308828,0.40725733,23786.0,23782.0,0.02957316]
[1659252309261,0.03467316,23785.0,23782.0,0.02957316]
[1659252309488,0.03467316,23785.0,23782.0,0.10357316]
[1659252310197,0.03467316,23785.0,23782.0,0.074]
[1659252310198,0.95,23783.0,23782.0,0.074]
[1659252310434,1.96099333,23783.0,23782.0,0.074]
[1659252310658,2.43506333,23783.0,23782.0,0.074]
[1659252310906,2.73506333,23783.0,23779.0,0.00013978]
[1659252311129,0.5,23780.0,23779.0,0.00013978]
[1659252311348,1.21099333,23780.0,23779.0,0.00013978]
[1659252311815,0.76099333,23780.0,23778.0,0.001]
[1659252312048,0.49993233,23779.0,23778.0,0.001]
[1659252312296,0.49193049,23779.0,23778.0,0.001]
[1659252312532,0.79566649,23779.0,23778.0,0.001]
[1659252312973,0.79566649,23779.0,23778.0,0.00093315]
[1659252313420,0.87566649,23779.0,23778.0,0.00093315]
[1659252314118,0.84099333,23779.0,23778.0,0.00093315]
[1659252314344,0.53725733,23779.0,23778.0,0.00093315]
[1659252314566,0.84099333,23779.0,23778.0,0.00093315]
[1659252314792,0.76099333,23779.0,23778.0,0.00093315]
[1659252315501,0.76099333,23779.0,23778.0,0.07893315]
[1659252315721,0.353736,23779.0,23778.0,0.07893315]
[1659252315949,0.303736,23779.0,23778.0,0.07893315]
[1659252316383,0.58518108,23782.0,23778.0,0.07893315]
[1659252316638,0.71099333,23781.0,23778.0,0.07893315]
[1659252316868,0.71099333,23781.0,23778.0,0.00093315]
[1659252316869,0.042675,23780.0,23778.0,0.00093315]
[1659252317086,0.303736,23779.0,23778.0,0.00093315]
[1659252317312,0.30300904,23779.0,23778.0,0.00093315]
[1659252317989,0.38467316,23779.0,23778.0,0.00093315]
[1659252318442,0.03467316,23779.0,23778.0,0.00093315]
[1659252318661,0.33847016,23779.0,23778.0,0.00093315]
[1659252319153,0.40725733,23781.0,23778.0,0.00093315]
[1659252319392,0.303797,23780.0,23778.0,0.00093315]
[1659252319610,0.041877,23779.0,23778.0,0.00093315]
[1659252319828,0.48625733,23781.0,23778.0,0.00093315]
[1659252320048,0.303797,23780.0,23778.0,0.00093315]
[1659252320271,0.041877,23779.0,23778.0,0.00093315]
[1659252320502,0.05,23779.0,23778.0,0.00093315]
[1659252322105,0.13,23779.0,23778.0,0.00093315]
[1659252322338,0.45725733,23779.0,23778.0,0.00093315]
[1659252322553,0.76105433,23779.0,23778.0,0.00093315]
[1659252323070,0.353797,23779.0,23778.0,0.00093315]
[1659252323298,0.091877,23779.0,23778.0,0.00093315]
[1659252323519,0.88518108,23782.0,23778.0,0.00093315]
[1659252323770,0.71105433,23781.0,23778.0,0.00093315]
[1659252323985,0.041877,23780.0,23778.0,0.07993315]
[1659252324205,0.303797,23779.0,23778.0,0.07993315]
[1659252325123,0.40725733,23781.0,23778.0,0.07993315]
[1659252325336,0.303797,23780.0,23778.0,0.00093315]
[1659252325563,0.041877,23779.0,23778.0,0.00093315]
[1659252325789,0.40725733,23781.0,23778.0,0.00093315]
[1659252326010,0.303797,23780.0,23778.0,0.00093315]
[1659252326444,0.341877,23779.0,23778.0,0.00093315]
[1659252326664,0.46025733,23781.0,23778.0,0.00093315]
[1659252326887,0.46025733,23781.0,23778.0,0.00112633]
[1659252327326,0.40725733,23781.0,23778.0,0.00112633]
[1659252327551,0.40725733,23781.0,23778.0,0.00093315]
[1659252327552,0.03467316,23780.0,23778.0,0.00093315]
[1659252328036,0.03467316,23780.0,23778.0,0.06793315]
[1659252328263,0.41225733,23781.0,23778.0,0.06812633]
[1659252328487,0.41225733,23781.0,23778.0,0.06793315]
[1659252329333,0.40725733,23781.0,23778.0,0.00112633]
[1659252329959,0.41225733,23781.0,23778.0,0.06812633]
[1659252330125,0.03467316,23780.0,23778.0,0.06812633]
[1659252330298,0.03467316,23780.0,23778.0,0.06793315]
[1659252330505,0.41225733,23781.0,23778.0,0.06793315]
[1659252331141,0.40725733,23781.0,23778.0,0.00093315]
[1659252331367,0.33847016,23780.0,23778.0,0.00093315]
[1659252331593,0.03467316,23780.0,23778.0,0.00093315]
[1659252331827,0.03467316,23780.0,23778.0,0.06793315]
[1659252332045,0.03467316,23780.0,23779.0,0.05]
[1659252332276,0.33847016,23780.0,23778.0,0.06793315]
[1659252332497,0.041877,23779.0,23778.0,0.06793315]
[1659252332737,0.03467316,23780.0,23778.0,0.06793315]
[1659252332975,0.303797,23779.0,23778.0,0.06793315]
[1659252333266,0.07655016,23780.0,23778.0,0.00093315]
[1659252333481,0.303797,23779.0,23778.0,0.00093315]
[1659252334125,0.11367316,23780.0,23778.0,0.00093315]
[1659252334341,0.303797,23779.0,23778.0,0.00093315]
[1659252334565,0.11367316,23780.0,23778.0,0.00093315]
[1659252334784,0.303797,23779.0,23778.0,0.00093315]
[1659252335018,0.079,23780.0,23778.0,0.00093315]
[1659252335226,0.40725733,23781.0,23778.0,0.00093315]
[1659252335454,0.303797,23780.0,23778.0,0.00093315]
[1659252335701,0.391877,23779.0,23778.0,0.00093315]
[1659252335946,0.35,23779.0,23778.0,0.00093315]
[1659252336180,0.653797,23779.0,23778.0,0.00093315]
[1659252336410,0.303797,23779.0,23778.0,0.00093315]
[1659252336860,0.041877,23780.0,23778.0,0.00093315]
[1659252337125,0.303797,23779.0,23778.0,0.00093315]
[1659252337327,0.40725733,23781.0,23778.0,0.00093315]
[1659252337551,0.303797,23780.0,23778.0,0.00093315]
[1659252337789,0.041877,23779.0,23778.0,0.00093315]
[1659252338004,0.46525733,23781.0,23778.0,0.00093315]
[1659252338232,0.303797,23780.0,23778.0,0.00093315]
[1659252338463,0.041877,23779.0,23778.0,0.00093315]
[1659252338678,0.46525733,23781.0,23778.0,0.00093315]
[1659252338890,0.303797,23780.0,23778.0,0.00093315]
[1659252339098,0.40725733,23781.0,23778.0,0.00093315]
[1659252339321,0.30294368,23780.0,23778.0,0.00093315]
[1659252339560,0.40725733,23781.0,23778.0,0.00112633]
[1659252339778,0.323793,23780.0,23778.0,0.07712633]
[1659252340008,0.02,23780.0,23778.0,0.07693315]
[1659252340682,0.05467316,23780.0,23778.0,0.07712633]
[1659252340934,0.02,23780.0,23778.0,0.07712633]
[1659252341156,0.02,23780.0,23778.0,0.07693315]
[1659252341811,0.05467316,23780.0,23778.0,0.07693315]
[1659252342745,0.303793,23779.0,23778.0,0.07693315]
[1659252342953,0.05467316,23780.0,23778.0,0.07693315]
[1659252343184,0.303793,23779.0,23778.0,0.00093315]
[1659252343400,0.03467316,23780.0,23778.0,0.00093315]
[1659252343914,0.303793,23779.0,23778.0,0.00093315]
[1659252344135,0.03467316,23780.0,23778.0,0.07893315]
[1659252345244,0.303793,23779.0,23778.0,0.07893315]
[1659252345446,0.03467316,23780.0,23778.0,0.07893315]
[1659252345654,0.45,23779.0,23778.0,0.00093315]
[1659252345887,0.03467316,23780.0,23778.0,0.00093315]
[1659252346099,0.303793,23779.0,23778.0,0.00093315]
[1659252346320,0.03467316,23780.0,23778.0,0.00093315]
[1659252346530,0.303793,23779.0,23778.0,0.00093315]
[1659252346754,0.03467316,23780.0,23778.0,0.00093315]
[1659252347014,0.303793,23779.0,23778.0,0.00093315]
[1659252347241,0.40725733,23781.0,23778.0,0.00487502]
[1659252347497,0.303793,23780.0,23778.0,0.00487502]
[1659252347706,0.041029,23779.0,23778.0,0.00093315]
[1659252347947,0.40725733,23781.0,23778.0,0.00093315]
[1659252348163,0.303793,23780.0,23778.0,0.00093315]
[1659252348382,0.40725733,23781.0,23778.0,0.00093315]
[1659252348613,0.303793,23780.0,23778.0,0.00487502]
[1659252348857,0.40725733,23781.0,23778.0,0.00093315]
[1659252349065,0.303793,23780.0,23778.0,0.00093315]
[1659252349300,0.40725733,23781.0,23778.0,0.00093315]
[1659252349509,0.303793,23780.0,23778.0,0.00093315]
[1659252349727,0.40725733,23781.0,23778.0,0.00093315]
[1659252349940,0.303793,23780.0,23778.0,0.00093315]
[1659252350170,0.40725733,23781.0,23778.0,0.00093315]
[1659252350382,0.303793,23780.0,23778.0,0.00093315]
[1659252350600,0.40725733,23781.0,23778.0,0.00093315]
[1659252350846,0.303793,23780.0,23778.0,0.00093315]
[1659252351068,0.03467316,23780.0,23778.0,0.00093315]
[1659252353895,0.40725733,23781.0,23778.0,0.00487502]
[1659252354152,0.303793,23780.0,23778.0,0.00487502]
[1659252354382,0.03467316,23780.0,23778.0,0.08287502]
[1659252354617,0.40725733,23781.0,23778.0,0.07893315]
[1659252354855,0.382793,23780.0,23778.0,0.07893315]
[1659252355138,0.491029,23779.0,23778.0,0.07893315]
[1659252356204,0.041029,23779.0,23778.0,0.00093315]
[1659252356457,0.120029,23779.0,23778.0,0.00093315]
[1659252357813,0.44828633,23779.0,23778.0,0.00093315]
[1659252358039,0.48295949,23779.0,23778.0,0.00093315]
[1659252358518,0.56195949,23779.0,23778.0,0.00093315]